Cogmind - Beta 16 @@@ ROGUE MODE // 2025.12.29 @ 18:56:20 Player: AlStar Result: Destroyed by 4D-3AM(j) with Overtuned Pulse Rifle Performance ------------- Evolutions (0) 0 Regions Visited (3) 600 Robots Destroyed (4) 20 Value Destroyed (120) 120 Prototype IDs (20) 400 Alien Tech Used (0) 0 Bonus (785) 785 TOTAL SCORE: 1925 Bonus ------- Registered with UFD 300 Met Optimus in HQ 500 Friendly Fire -15 Cogmind --------- Core Integrity 0/250 Matter 300/300 Energy 100/100 System Corruption 0% Temperature Cool (37) Movement Core (300) Ox5 Location -8/Scraptown Parts ------- > --- POWER (1) -------- (None) > --- PROPULSION (2) --- Overtuned Titanium Leg Overtuned Titanium Leg > --- UTILITY (2) ------ Medium Storage Unit A0-MCA's Component Scanner > --- WEAPON (2) ------- Companion Sword Heavy Pick > --- INVENTORY (10) --- Overtuned Titanium Leg Scrap Suit Scrap Suit Makeshift Salvage Targeting Computer Medium Armor Plating Makeshift Hacking Suite Junk Cannon (0) Peak State ------------ > --- POWER ------------ (None) > --- PROPULSION ------- Overtuned Titanium Leg Overtuned Titanium Leg > --- UTILITY ---------- Medium Storage Unit A0-MCA's Component Scanner > --- WEAPON ----------- Companion Sword Heavy Pick > --- INVENTORY -------- Overtuned Titanium Leg Scrap Suit Scrap Suit Makeshift Salvage Targeting Computer Medium Armor Plating Makeshift Hacking Suite Junk Cannon [Rating: 31] Favorites ----------- Power Deuterium Engine Engine Deuterium Engine Propulsion Compact Wheel Leg Overtuned Titanium Leg Wheel Compact Wheel Utility Visual Processing Unit Storage Medium Storage Unit Processor Visual Processing Unit Hackware Hacking Suite Weapon EM Pulse Gun Energy Gun EM Pulse Gun Ballistic Gun Assault Rifle Slashing Weapon Companion Sword Piercing Weapon Heavy Pick Build | -11 -10 -10 -8 ------- Run | Yrd Mat Sub Scr Slots Evolved . | . . . . Power . | . . . . Propulsion . | . . . . Utility . | . . . . Weapon . | . . . . Parts Attached 19 | 5 2 1 11 Power 3 | 1 . 1 1 Engine 3 | 1 . 1 1 Core . | . . . . Reactor . | . . . . Propulsion 6 | 2 . . 4 Treads . | . . . . Leg 3 | . . . 3 Wheel 3 | 2 . . 1 Hover . | . . . . Flight . | . . . . Utility 5 | . 2 . 3 Device . | . . . . Storage 1 | . . . 1 Processor 3 | . 2 . 1 Hackware 1 | . . . 1 Protection . | . . . . Artifact . | . . . . Weapon 5 | 2 . . 3 Energy Gun 2 | 1 . . 1 Energy Cannon . | . . . . Ballistic Gun 1 | 1 . . . Ballistic Cannon . | . . . . Launcher . | . . . . Special Weapon . | . . . . Impact Weapon . | . . . . Slashing Weapon 1 | . . . 1 Piercing Weapon 1 | . . . 1 Special Melee Weapon . | . . . . Unidentified Prototypes . | . . . . Parts Lost 2 | . . . 2 Power 1 | . . . 1 Propulsion 1 | . . . 1 Utility . | . . . . Weapon . | . . . . Highest Loss Streak 2 | . . . 2 To Critical Strikes . | . . . . Average Backups 4 | 1 2 3 4 Power . | . 1 1 . Propulsion . | . . 1 . Utility 1 | . . . 2 Weapon 1 | 1 1 1 1 Tool/Special . | . . . . Unused Backups 12 | . . 1 11 Power 1 | . . . 1 Propulsion . | . . . . Utility 7 | . . . 7 Weapon 4 | . . 1 3 Tool/Special . | . . . . Average Slot Usage (%) 98 | . 95 100 99 Engine 13 | . 14 14 13 Wheel 27 | . 28 28 26 Storage 1 | . . . 1 Processor 21 | . 23 28 19 Hackware 5 | . . . 6 Energy Gun 14 | . 14 14 14 Ballistic Gun 3 | . 14 14 1 Slashing Weapon 3 | . . . 4 Piercing Weapon 6 | . . . 8 Peak Build Rating 31 | 5 8 9 31 Average Rating 16 | 3 7 8 19 On Entrance 5 | . 5 8 9 Avg Prop Armor Cover (%) 17 | . . . 17 Naked Turns . | . . . . Heaviest Build 26 | 7 7 9 26 Greatest Support 38 | 32 32 32 38 Greatest Overweight (x) 5 | . . . 5 Average Overweight (x) . | . . . . Largest Inventory Capacity 10 | 5 5 5 10 Average Capacity 5 | 5 5 5 5 Most Carried 10 | 4 3 5 10 Average Carried 4 | 1 2 3 5 Final Capacity 10 | 5 5 5 10 Final Carried 10 | 2 3 5 10 Class Distribution -------------------- 100% | Mutant Dominant Class ---------------- Mutant | -10/Materials Mutant | -10/Subcaves Mutant | -8/Scraptown Resources | -11 -10 -10 -8 ----------- Run | Yrd Mat Sub Scr Matter Collected 423 | 172 60 81 110 Remotely . | . . . . Salvage Created 217 | . 30 . 187 Parts 14 | . 3 . 11 Haulers Intercepted . | . . . . Recyclers Shooed . | . . . . Parts Field Recycled . | . . . . Retrieved Matter . | . . . . Parts Self-Destructed 6 | . . 5 1 Prevented . | . . . . Parts Restored . | . . . . Kills | -11 -10 -10 -8 ------- Run | Yrd Mat Sub Scr Combat Hostiles Destroyed 3 | . . . 3 Melee 3 | . . . 3 Classes Destroyed 3 | . 1 . 2 Tunneler 1 | . 1 . . Federalist 2 | . . . 2 Scrapper 1 | . . . 1 Best Kill Streak 3 | . 1 . 3 Combat Bots Only 3 | . . . 3 Max Kills in Single Turn 1 | . 1 . 1 Gunslinging . | . . . . Exploded . | . . . . Melee 1 | . . . 1 Uniques/NPCs Destroyed . | . . . . Combat | -11 -10 -10 -8 -------- Run | Yrd Mat Sub Scr Hostile Shots Fired 45 | . . 8 37 Missed 14 | . . 4 10 Hits 31 | . . 4 27 Projectile 31 | . . 4 27 Critical Strikes 1 | . . . 1 Damage Taken 510 | . . 92 418 Core 271 | . . 33 238 Absorbed by Shields . | . . . . Core Remaining (%) 100 | 100 . . . Volleys Fired 11 | 1 5 5 . Largest 2 | 2 2 2 . Hottest 60 | 60 60 60 . Shots Fired 22 | 2 10 10 . Gun 22 | 2 10 10 . Cannon . | . . . . Launcher . | . . . . Special . | . . . . Kinetic 11 | 1 5 5 . Thermal . | . . . . Explosive . | . . . . Electromagnetic 11 | 1 5 5 . Robot Hit Streak 7 | . 5 7 . Robot Miss Streak 3 | . 3 2 . Penetration Max . | . . . . Secondary Targets . | . . . . Shots Hit Robots 21 | . 6 7 8 Core Hits 7 | . 1 2 4 Critical Kills . | . . . . Critical Parts Destroyed . | . . . . Critical Strikes . | . . . . Melee Attacks 9 | . . . 9 Impact . | . . . . Slashing 9 | . . . 9 Piercing . | . . . . Sneak Attacks . | . . . . Combat Hostiles . | . . . . Follow-up Attacks . | . . . . Damage Inflicted 577 | 26 95 80 376 Guns 201 | 26 95 80 . Cannons . | . . . . Explosions . | . . . . Melee 376 | . . . 376 Ramming . | . . . . Kinetic 73 | 11 23 39 . Thermal . | . . . . Explosive . | . . . . Electromagnetic 128 | 15 72 41 . Impact . | . . . . Slashing 376 | . . . 376 Piercing . | . . . . Highest Corruption . | . . . . Average Corruption . | . . . . Corruption Purged . | . . . . Corruption Blocked . | . . . . Overload Shots . | . . . . Overflow Damage 17 | . . . 17 Projectiles . | . . . . Explosions . | . . . . Melee 17 | . . . 17 Knockbacks . | . . . . Impact . | . . . . Kinetic . | . . . . Secondary . | . . . . Self-Inflicted Damage . | . . . . Shots . | . . . . Rammed . | . . . . Targets Rammed . | . . . . Kicked . | . . . . Crushed . | . . . . Highest Temperature . | . . . . Average Temperature . | . . . . Received Heat Transfer 286 | . . 39 247 Siege Activations . | . . . . Martial Activations . | . . . . Shielding Activations . | . . . . Robots Disrupted . | . . . . Combat Hostiles . | . . . . Robots Corrupted . | . . . . Combat Hostiles . | . . . . Parts Fried . | . . . . Impact Corruptions . | . . . . Robots Melted . | . . . . Combat Hostiles . | . . . . Parts Melted 2 | . . . 2 Heat Transferred . | . . . . Parts Sabotaged . | . . . . Parts Stolen . | . . . . Parts Stripped . | . . . . Power Chain Reactions . | . . . . Alert | -11 -10 -10 -8 ------- Run | Yrd Mat Sub Scr Maximum Alert Level . | . . . . Low Security (%) 100 | 100 100 . . Level 1 . | . . . . Level 2 . | . . . . Level 3 . | . . . . Level 4 . | . . . . Level 5 . | . . . . High Security . | . . . . Max Security . | . . . . Peak Influence 5 | . 5 . . Initial . | . . . . Average . | . . . . Influence Increases 10 | . 5 . 5 Destroy 0b10 Robot/NC 10 | . 5 . 5 Influence Decreases 10 | . 5 . 5 Time Decay 10 | . 5 . 5 Squads Dispatched . | . . . . Investigation . | . . . . Extermination . | . . . . Reinforcement . | . . . . Assault . | . . . . Garrison . | . . . . Intercept . | . . . . Searches Triggered . | . . . . Construction Impeded . | . . . . Haulers Reinforced . | . . . . Active Scanning Responses . | . . . . Cargo Convoy Interrupts . | . . . . Stealth | -11 -10 -10 -8 --------- Run | Yrd Mat Sub Scr Distress Signals 2 | . 2 . . Communications Jammed . | . . . . Distress Signals . | . . . . Times Spotted 15 | . 2 4 9 Peak Tracking Total 4 | . 1 2 4 Tactical Retreats . | . . . . Traps | -11 -10 -10 -8 ------- Run | Yrd Mat Sub Scr Traps Triggered . | . . . . Indirectly . | . . . . Trap Hack Attempts . | . . . . Triggered . | . . . . Disarmed . | . . . . Reprogrammed . | . . . . Reused . | . . . . Traps Extracted . | . . . . Installed . | . . . . Triggered . | . . . . Machines | -11 -10 -10 -8 ---------- Run | Yrd Mat Sub Scr Machines Disabled . | . . . . Max in Single Turn . | . . . . Machines Repaired . | . . . . Machines Dismantled . | . . . . Machines Sabotaged . | . . . . Overloaded Fab Kills . | . . . . Hacking | -11 -10 -10 -8 --------- Run | Yrd Mat Sub Scr Machines Accessed 14 | . 2 1 11 Terminals 1 | . 1 . . Fabricators . | . . . . Repair Stations . | . . . . Recycling Units 1 | . 1 . . Scanalyzers . | . . . . Garrison Access . | . . . . Total Hacks 72 | . 3 4 65 Successful 70 | . 1 4 65 Failed 2 | . 2 . . Catastrophic . | . . . . Database Lockouts . | . . . . Manual 3 | . 2 1 . Terminals 2 | . 2 . . Fabricators . | . . . . Repair Stations . | . . . . Recycling Units 1 | . 1 . . Scanalyzers . | . . . . Garrison Access . | . . . . Terminal Hacks 69 | . . 4 65 Record 67 | . . 4 63 Open Door 1 | . . . 1 Proto ID Catalog 1 | . . . 1 Fabricator Hacks . | . . . . Repair Station Hacks . | . . . . Recycling Unit Hacks 1 | . 1 . . Report Inventory 1 | . 1 . . Scanalyzer . | . . . . Garrison Access Hacks . | . . . . Unauthorized Hacks . | . . . . Terminals . | . . . . Fabricators . | . . . . Repair Stations . | . . . . Recycling Units . | . . . . Scanalyzers . | . . . . Garrison Access . | . . . . Data Cores Recovered . | . . . . Used . | . . . . Hacking Detections 1 | . 1 . . Full Trace Events . | . . . . Feedback Events . | . . . . Feedback Blocked . | . . . . Robot Schematics Acquired . | . . . . Robots Built . | . . . . Authchips . | . . . . Time . | . . . . Total Robot Build Rating . | . . . . Part Schematics Acquired . | . . . . Parts Built . | . . . . Authchips . | . . . . Time . | . . . . Total Part Build Rating . | . . . . Part Studies Acquired . | . . . . Parts Repaired . | . . . . Time . | . . . . Parts Recycled . | . . . . Recycled Matter . | . . . . Retrieved Matter . | . . . . Retrieved Components . | . . . . Parts Scanalyzed . | . . . . Part Schematics Acquired . | . . . . Parts Damaged . | . . . . Bothacking | -11 -10 -10 -8 ------------ Run | Yrd Mat Sub Scr Used RIF Installer . | . . . . Robots Hacked . | . . . . Non-combat . | . . . . Combat . | . . . . Robot Hacks Applied . | . . . . Relay Couplers Released . | . . . . Fabnet Peak Effective % . | . . . . Robots Rewired . | . . . . Allies Hacked . | . . . . Hacks Repelled . | . . . . Allies | -11 -10 -10 -8 -------- Run | Yrd Mat Sub Scr Total Allies . | . . . . Largest Group . | . . . . Highest-Rated Group . | . . . . Highest-Rated Ally . | . . . . Total Orders . | . . . . Ally Attacks . | . . . . Total Damage . | . . . . Kills . | . . . . Allies Corrupted . | . . . . Allies Melted 2 | . . . 2 Intel | -11 -10 -10 -8 ------- Run | Yrd Mat Sub Scr Active Infowar (turns) 1507 | . 96 241 1170 Optics 1507 | . 96 241 1170 Robot Analysis Total . | . . . . Derelict Logs Recovered 2 | . . 1 1 Drone Launches . | . . . . Drone Recoveries . | . . . . Exploration | -11 -10 -10 -8 ------------- Run | Yrd Mat Sub Scr Turns Passed 1759 | 58 124 241 1336 Spaces Moved 1737 | 43 87 211 1396 Core 9 | 4 . . 5 Treads . | . . . . Legs 17 | . . . 17 Wheels 1711 | 39 87 211 1374 Hover . | . . . . Flight . | . . . . Fastest Speed 50 | 50 100 100 90 Average Speed 92 | 95 100 100 91 Slowest Speed 300 | 100 100 100 300 Overloaded Moves . | . . . . Propulsion Burnouts . | . . . . Robots Hopped . | . . . . Potential Cave-ins . | . . . . Cave-ins Triggered . | . . . . Exploration Rate (%) 32 | 3 20 22 83 Regions Visited 3 Branch Regions 2 Pre-discovered Areas 1 | . . 1 . Known Exits Taken . | . . . . Unknown Exits Taken 3 | 1 1 1 . Scrap Searched 8 | . . . 8 Spaces Dug . | . . . . Terrain Destroyed . | . . . . Melee . | . . . . Projectile . | . . . . AOE . | . . . . Terrain Rammed . | . . . . Walls Destroyed . | . . . . Machines Disabled . | . . . . Actions | -11 -10 -10 -8 --------- Run | Yrd Mat Sub Scr Total 1854 | 58 114 231 1451 Wait 36 | 3 18 9 6 Move 1734 | 42 86 210 1396 Hop . | . . . . Pick Up 27 | 7 3 4 13 Fast Attach 6 | . . . 6 Attach 9 | 5 2 . 2 Detach . | . . . . Swap 4 | . . 1 3 Drop 18 | . . 2 16 Fire 11 | 1 5 5 . Melee 9 | . . . 9 Ram . | . . . . Kick . | . . . . Crush . | . . . . Escape Stasis . | . . . . Rewire . | . . . . Trap . | . . . . Miscellaneous . | . . . . Route ------- -11/Scrapyard -10/Materials (discovered 3 exits: [*Mat] / [*Min] / *Sub) -10/Subcaves (discovered 2 exits: Rec / *Scr) -8/Scraptown (discovered 2 exits: Fac x2) History --------- Turn | Location | Event 2 | -11/Scrapyard | Met Revision 17 22 | -11/Scrapyard | Discovered new exit (range 16) 59 | -11/Scrapyard | Entered Materials 60 | -10/Materials | Met a group of wandering Federalists 84 | -10/Materials | Discovered new exit (range 15) 102 | -10/Materials | Discovered new exit (range 7) 131 | -10/Materials | Discovered new exit (range 3) 183 | -10/Materials | Entered Subcaves 183 | -10/Subcaves | Accompanied by 4 allies 184 | -10/Subcaves | Continued accompanying wandering Federalists (5) 199 | -10/Subcaves | Learned location of Zion (-7) 287 | -10/Subcaves | Visited Clippyterm 290 | -10/Subcaves | Identified exit to Recycling 290 | -10/Subcaves | Learned Factory stockpile data 317 | -10/Subcaves | Build established: Mutant 358 | -10/Subcaves | Lost 3 allies 400 | -10/Subcaves | Wandering Federalist uncovered a shortcut to Scraptown 424 | -10/Subcaves | Entered Scraptown 591 | -8/Scraptown | Visited UFD Registry 591 | -8/Scraptown | Registered with UFD as "Hardnade" 608 | -8/Scraptown | Visited Cyclists 620 | -8/Scraptown | Entered Cyclist Reading Room 649 | -8/Scraptown | Visited Bundlers 715 | -8/Scraptown | Visited Fellowship of the Rings 862 | -8/Scraptown | Scanned Subdweller tech in exchange for log data 1174 | -8/Scraptown | Visited The Evicted 1213 | -8/Scraptown | Visited Symbiants 1255 | -8/Scraptown | Visited Research Penetration Think Tank 1275 | -8/Scraptown | Visited Science Guys 1308 | -8/Scraptown | Visited A0-MCA Data Center 1314 | -8/Scraptown | Given a B rating by A0-MCA 1319 | -8/Scraptown | Found A0-MCA's Component Scanner 1346 | -8/Scraptown | Visited Sword Containment 1356 | -8/Scraptown | Found Companion Sword 1390 | -8/Scraptown | Visited Infowarlord's Domain 1410 | -8/Scraptown | Visited Science Testing Area 1474 | -8/Scraptown | Met Optimus 1474 | -8/Scraptown | Accepted into 0bPrime 1524 | -8/Scraptown | Visited Junk Cannon Lab 1532 | -8/Scraptown | Found Junk Cannon 1558 | -8/Scraptown | Visited Scrap Suit Storage 1562 | -8/Scraptown | Found Scrap Suit 1589 | -8/Scraptown | Visited Supply Room 1592 | -8/Scraptown | Civil war broke out across Scraptown 1618 | -8/Scraptown | Visited Observation Area 1642 | -8/Scraptown | Found Scrap Suit 1666 | -8/Scraptown | Identified exit to Factory 1698 | -8/Scraptown | Core integrity fell below 50% 1705 | -8/Scraptown | Core integrity fell below 20% 1739 | -8/Scraptown | Optimus destroyed in the chaos of civil war 1758 | -8/Scraptown | Lost 4 allies 1760 | -8/Scraptown | Destroyed by 4D-3AM(j) with Overtuned Pulse Rifle Last Messages --------------- 01720_ 8D-VLN(g) destroyed. 01725_ Dropped Com. Wheel. 01725_ Acquired Ovr. Titanium Leg. 01727_ Acquired 20 matter. 01728_ Ovr. Titanium Leg suddenly begins malfunctioning. 01733_ Destroyed Salvaging Laser. 01738_ QF-EA3(g) destroyed. 01739_ 3C-XN7(p) suffers critical hit (Burn). 01739_ 3C-XN7(p) destroyed. 01739_ ANNOUNCEMENT: The traitor Optimus has been dealt with. Put down any remaining collaborators. 01741_ 0J-UT2(j): "We will win here, and we will win in 0b1. Believe it." 01743_ Acquired Ovr. Titanium Leg. 01745_ Ovr. Titanium Leg suddenly begins malfunctioning. 01749_ Acquired 10 matter. 01758_ Ovr. Titanium Leg recovered from malfunction. Companion Sword: "It's getting lonelier around here, but at least we have each other." 01760_ Critical hit (Burn: +50). Map ----- +----------------------------------------------------+ | ?????????????????????????????????????????????????? | | ?????????????????????????????????????????????????? | | ?????????????????????????????????????????????????? | | ?????????????????????????????????????????????????? | | ?????????????????????????????????????????????????? | | ???????????????????????????????????